bitfinex-derivatives/quotes_ETHF0:USTF0_20250101
["timestamp","ask_amount","ask_price","bid_price","bid_amount"]
[1735771256122,1.51229365,3368.1,3367.7,0.8745]
[1735771256318,1.80981365,3368.1,3367.8,0.29753]
[1735771256519,0.29752,3368.0,3367.8,0.29753]
[1735771258625,0.29752,3368.0,3367.7,1.17204]
[1735771259625,3.50532,3368.0,3367.7,1.17204]
[1735771261421,3.50532,3368.0,3367.8,0.29753]
[1735771261825,3.50532,3368.0,3367.7,1.17204]
[1735771262126,0.29753,3367.9,3367.7,0.8745]
[1735771262823,0.29753,3367.9,3367.7,1.17204]
[1735771266425,0.29753,3367.8,3367.7,0.8745]
[1735771272034,0.73373,3367.8,3367.7,0.8745]
[1735771274029,1.49719365,3367.8,3367.1,3.2078]
[1735771274225,1.06099365,3367.4,3366.6,0.59932149]
[1735771274528,3.2078,3366.7,3366.6,0.59932149]
[1735771274730,0.29767,3366.3,3365.9,0.2977]
[1735771274937,1.06099365,3366.3,3366.0,0.46543311]
[1735771275232,0.29768,3366.1,3366.0,0.46543311]
[1735771275534,0.29768,3366.2,3365.8,3.50551]
[1735771275731,0.29768,3366.1,3365.8,3.50551]
[1735771275934,0.29768,3366.1,3365.9,0.2977]
[1735771278041,1.06099365,3366.3,3365.8,3.2078]
[1735771278336,3.2078,3366.1,3365.7,1.06099365]
[1735771278544,0.29769,3366.1,3366.0,0.29769]
[1735771281440,0.29768,3366.2,3366.1,0.29768]
[1735771282035,0.29768,3366.2,3366.1,41.09768]
[1735771282236,0.29768,3366.2,3366.1,0.29768]
[1735771284135,0.29767,3366.3,3366.1,0.29768]
[1735771285942,0.29767,3366.3,3366.2,0.29767]
[1735771286241,3.50546,3366.4,3366.2,0.29767]
[1735771287736,3.2078,3366.4,3366.1,1.06099365]
[1735771287943,3.2078,3366.4,3366.2,0.29767]
[1735771288440,3.2078,3366.4,3366.3,0.29767]
[1735771294143,1.3786,3366.6,3366.1,1.06099365]
[1735771294338,1.3786,3366.6,3366.5,0.29765]
[1735771297142,3.2078,3366.8,3366.5,1.06099365]
[1735771297447,1.06099365,3367.2,3367.1,0.2976]
[1735771298937,4.5615,3367.3,3366.8,0.29762]
[1735771299145,4.5615,3367.3,3367.1,0.29759]
[1735771301040,4.5615,3367.3,3366.8,0.4505]
[1735771301447,4.85908,3367.3,3366.8,0.4505]
[1735771301745,4.85908,3367.3,3367.1,0.29759]
[1735771301942,4.5615,3367.3,3366.8,0.4505]
[1735771302146,4.5615,3367.3,3367.0,0.2976]
[1735771302341,4.5615,3367.3,3366.8,0.4505]
[1735771302643,4.85908,3367.3,3367.0,0.2976]
[1735771303351,4.85908,3367.3,3366.9,0.29761]
[1735771303849,4.85908,3367.3,3367.0,0.2976]
[1735771304248,4.5615,3367.3,3366.9,1.06099365]
[1735771304449,4.5615,3367.3,3367.2,0.29759]
[1735771304947,3.6526,3367.3,3367.2,0.29759]
[1735771317762,0.4448,3367.3,3367.2,0.29759]
[1735771345084,0.4448,3367.3,3367.2,0.73109]
[1735771357984,0.4448,3367.3,3366.8,0.74406]
[1735771358182,0.4448,3367.3,3367.2,0.29759]
[1735771375898,3.2078,3367.4,3367.0,1.06099365]
[1735771376202,0.4442,3367.6,3367.5,0.29756]
[1735771389512,3.50534,3367.8,3367.6,0.29755]
[1735771389812,3.50534,3367.8,3367.7,0.4225]
[1735771390200,0.29754,3367.8,3367.7,0.4225]
[1735771390405,1.19533,3367.9,3367.7,0.72004]
[1735771390904,0.8978,3367.9,3367.8,0.29753]
[1735771395509,3.2078,3368.2,3368.1,0.29751]
[1735771395712,12.86267978,3368.4,3368.3,0.29749]
[1735771395913,12.20641978,3368.4,3368.3,4.56628365]
[1735771396109,11.06537978,3368.4,3368.3,9.56628365]
[1735771396310,3.2078,3369.6,3369.5,0.29738]
[1735771396510,10.43127978,3369.7,3369.6,0.29737]
[1735771396917,10.43127978,3369.7,3369.6,5.76224792]
[1735771397118,10.43127978,3369.7,3369.6,46.56224792]
[1735771397318,0.2973,3370.4,3369.6,46.26487792]
[1735771397519,0.2973,3370.4,3370.1,3.50513]
[1735771398209,4.26879365,3370.6,3370.1,3.2078]
[1735771398415,0.29733,3370.1,3369.8,1.35834365]
[1735771399613,0.29733,3370.1,3369.8,0.29735]
[1735771399821,3.2078,3370.2,3369.6,3.50517]
[1735771399822,0.29735,3369.9,3369.6,3.50517]
[1735771404325,0.29735,3369.9,3369.7,0.29736]
[1735771406021,0.29736,3369.8,3369.6,3.50517]
[1735771407317,5.90238239,3370.2,3369.6,3.2078]
[1735771407517,5.90238239,3370.2,3369.2,0.4678]
[1735771407518,3.2078,3369.7,3368.0,3.2078]
[1735771407723,0.29747,3368.6,3368.4,0.29747]
[1735771408022,0.29745,3368.7,3368.5,0.29747]
[1735771408217,0.29746,3368.6,3368.4,0.29748]
[1735771408418,0.29748,3368.5,3368.3,0.29749]
[1735771409519,0.29748,3368.5,3368.4,0.29748]
[1735771410121,3.6656,3368.8,3368.4,0.29748]
[1735771410331,0.29747,3368.6,3368.4,0.29748]
[1735771410819,0.29748,3368.5,3368.3,0.29748]
[1735771411123,0.2975,3368.2,3368.0,0.29751]
[1735771411422,0.849,3368.1,3368.0,0.29751]
[1735771412330,0.849,3368.1,3367.5,3.2078]
[1735771412622,0.849,3368.1,3367.9,0.29752]
[1735771412623,1.14651,3368.1,3367.9,0.29752]
[1735771414124,1.14651,3368.1,3367.5,3.2078]
[1735771414325,0.4678,3368.0,3367.8,0.29753]
[1735771414924,0.4678,3368.0,3367.5,3.2078]
[1735771415227,0.4678,3368.0,3367.9,0.29752]
[1735771421726,3.2078,3368.7,3368.6,0.29746]
[1735771421927,3.2078,3369.4,3368.6,6.19004239]
[1735771422323,3.2078,3369.4,3369.2,0.29741]
[1735771423331,3.2078,3369.4,3369.1,0.29741]
[1735771427046,3.50519,3369.4,3369.1,0.29741]
[1735771427648,3.2078,3369.4,3369.2,0.29741]
[1735771428146,3.2078,3369.4,3369.3,0.2974]
[1735771428943,3.2078,3369.4,3369.2,0.29741]
[1735771429345,3.6482,3369.4,3369.2,0.29741]
[1735771429744,4.1021,3369.4,3369.2,0.29741]
[1735771430651,4.1021,3369.4,3368.8,0.9181]
[1735771430857,4.1021,3369.4,3369.3,0.2974]
[1735771431847,3.2078,3369.4,3369.3,0.2974]
[1735771432043,3.2078,3369.4,3368.8,0.9181]
[1735771432044,0.00200176,3369.7,3369.1,0.29742]
[1735771432351,0.00200176,3369.7,3369.0,3.2078]
[1735771432757,0.00200176,3369.7,3369.4,0.29739]
[1735771432758,0.29937176,3369.7,3369.4,0.29739]
[1735771433151,0.29937176,3369.7,3369.3,0.2974]
[1735771433648,0.29937176,3369.7,3369.1,0.29742]
[1735771433852,0.29937176,3369.7,3369.3,0.2974]
[1735771434249,0.00200176,3369.7,3369.5,0.29738]
[1735771436156,0.00200176,3369.7,3369.4,0.29739]
[1735771437356,0.00200176,3369.7,3369.5,0.29738]
[1735771437557,0.29937176,3369.7,3369.4,0.29739]
[1735771438354,0.00200176,3369.7,3369.6,0.29737]
[1735771439151,3.2078,3370.2,3370.1,0.29733]
[1735771440949,3.2078,3371.2,3370.1,5.0]
[1735771441152,3.2078,3371.2,3370.4,3.2078]
[1735771441451,0.29726,3371.0,3370.6,0.29728]
[1735771441658,1.323,3371.1,3370.5,0.4572]
[1735771441853,1.323,3371.1,3370.4,3.2078]
[1735771441854,0.29728,3370.7,3370.4,3.2078]
[1735771442159,0.29728,3370.7,3370.0,6.20091239]
[1735771442461,3.2078,3370.8,3370.0,6.20091239]
[1735771442654,0.29731,3370.4,3370.0,6.20091239]
[1735771442854,0.29731,3370.4,3370.2,0.29732]
[1735771443154,0.2973,3370.5,3370.2,0.29732]
[1735771443463,0.2973,3370.5,3370.0,5.90358239]
[1735771443758,3.2078,3370.8,3370.0,5.90358239]
[1735771444168,0.2973,3370.5,3370.2,0.29732]
[1735771444762,3.2078,3370.8,3370.2,0.29732]
[1735771445060,0.29731,3370.3,3370.1,0.29733]
[1735771447255,0.29731,3370.3,3370.2,0.29732]
[1735771451365,0.74951,3370.3,3370.2,0.29732]
[1735771452263,0.4522,3370.3,3370.0,0.4572]
[1735771452463,0.29733,3370.1,3370.0,0.75453]
[1735771452966,0.897,3370.3,3370.0,2.69578239]
[1735771453166,3.2078,3371.1,3370.2,3.2078]
[1735771453359,3.50504,3371.1,3370.9,0.29725]
[1735771453560,3.50504,3371.1,3371.0,0.4296]
[1735771454365,3.2078,3371.1,3371.0,0.4296]
[1735771457270,3.50504,3371.1,3371.0,0.4296]
[1735771457769,3.2078,3371.1,3370.7,0.29727]
[1735771458164,3.6472,3371.1,3370.7,0.29727]
[1735771458363,3.94445,3371.1,3370.7,0.29727]
[1735771458768,0.29725,3371.0,3370.6,0.29728]
[1735771460560,0.4678,3371.0,3370.6,0.29728]
[1735771460765,0.76505,3371.0,3370.6,0.29728]
[1735771461470,0.29725,3371.0,3370.5,0.73389]
[1735771462263,0.29725,3371.0,3370.6,0.29728]
[1735771462468,0.29726,3370.9,3370.5,0.73389]
[1735771462665,3.6472,3371.1,3370.5,0.4366]
[1735771462967,3.6472,3371.1,3370.6,0.29728]
[1735771463361,0.29725,3371.0,3370.6,0.29728]
[1735771465770,3.50505,3371.0,3370.6,0.29728]
[1735771466172,0.29726,3370.9,3370.6,0.29728]
[1735771468371,0.29727,3370.8,3370.6,0.29728]
[1735771472676,0.29727,3370.8,3370.7,0.29728]
[1735771474172,3.6713,3371.0,3370.5,0.4366]
[1735771474476,3.6713,3371.0,3370.9,0.29726]
[1735771475784,3.2078,3371.0,3370.9,0.29726]
[1735771480880,3.50505,3371.0,3370.9,0.29726]
[1735771484184,3.50505,3371.0,3370.5,1.17983]
[1735771484185,0.29724,3371.2,3371.1,0.29724]
[1735771486481,0.29723,3371.3,3371.1,0.29724]
[1735771489395,0.29722,3371.4,3371.2,0.29723]
[1735771493183,0.29722,3371.3,3371.1,0.29724]
[1735771494893,0.29723,3371.2,3371.0,0.29725]
[1735771496390,0.425,3371.1,3371.0,0.29725]
[1735771497587,0.72224,3371.1,3371.0,0.29725]
[1735771498991,0.425,3371.1,3370.5,0.4366]
[1735771499192,0.4333,3371.0,3370.5,0.4366]
[1735771499495,0.73397,3370.9,3370.8,0.29727]
[1735771500088,0.29727,3370.8,3370.7,0.29727]
[1735771502590,0.2973,3370.5,3370.4,0.29729]
[1735771502793,8.2078,3370.5,3369.2,4.68164115]
[1735771503095,0.29738,3369.6,3369.5,0.29738]
[1735771503496,1.23348,3369.6,3369.5,0.29738]
[1735771504393,0.9361,3369.6,3369.5,0.29738]
[1735771504592,1.23347,3369.6,3369.5,0.29738]
[1735771504992,0.9361,3369.6,3369.5,0.29738]
[1735771505392,0.9361,3369.6,3369.5,41.09738]
[1735771505590,0.9361,3369.6,3369.5,42.15628112]
[1735771506195,0.9361,3369.6,3369.5,41.09738]
[1735771507396,0.469,3369.6,3369.5,41.09738]
[1735771516502,0.469,3369.6,3369.5,0.29738]
[1735771517099,0.469,3369.6,3369.5,41.09738]
[1735771518096,0.469,3369.6,3369.5,0.29738]
[1735771518796,0.469,3369.6,3369.5,41.09738]
[1735771519201,0.469,3369.6,3369.5,0.29738]
[1735771525000,0.469,3369.6,3369.5,3.50518]
[1735771525206,0.469,3369.6,3369.5,3.9700325]
[1735771525399,0.469,3369.6,3369.5,3.50518]
[1735771525697,0.4377,3369.9,3369.8,0.29736]
[1735771528304,0.4377,3369.9,3369.8,1.35689666]
[1735771533212,0.4639,3370.1,3369.8,1.05953666]
[1735771533414,0.9158,3370.1,3370.0,0.29734]
[1735771533815,3.2078,3370.5,3370.0,1.35687666]
[1735771534115,1.3292,3370.7,3370.4,1.05953666]
[1735771534315,0.8772,3370.7,3370.6,1.35682666]
[1735771534701,0.4678,3371.0,3370.9,0.29726]
[1735771538718,0.4678,3371.0,3370.9,3.50506]
[1735771538917,0.4678,3371.0,3370.9,0.29726]
[1735771546512,0.4678,3371.0,3370.7,3.2078]
[1735771546712,0.29733,3370.2,3369.5,3.2078]
[1735771546919,0.8754,3370.1,3370.0,0.29733]
[1735771547123,0.8754,3370.1,3369.5,3.95126]
[1735771547324,1.05953666,3369.9,3369.8,0.29736]
[1735771548223,1.17273,3370.1,3369.5,3.2078]
[1735771548412,1.17273,3370.1,3370.0,0.29734]
[1735771549626,1.17273,3370.1,3369.9,0.29734]
[1735771550122,0.8754,3370.1,3370.0,0.29734]
[1735771550323,1.3261,3370.1,3370.0,0.29734]
[1735771551223,0.4491,3370.1,3370.0,0.29734]
[1735771551423,0.29729,3370.6,3370.5,0.29729]
[1735771551424,0.915,3370.6,3370.5,0.29729]
[1735771552020,0.915,3370.6,3370.0,0.74336]
[1735771552223,0.915,3370.6,3370.4,0.2973]
[1735771552420,0.915,3370.6,3370.0,0.74336]
[1735771552614,0.915,3370.6,3370.5,0.29729]
[1735771552820,1.3797,3370.6,3370.5,0.29729]
[1735771553626,1.3797,3370.6,3370.4,0.2973]
[1735771554520,1.67699,3370.6,3370.4,0.2973]
[1735771555924,1.3797,3370.6,3370.4,0.2973]
[1735771556226,1.3797,3370.6,3370.5,0.29729]
[1735771560026,0.4647,3370.6,3370.5,0.29729]
[1735771561632,0.4647,3370.6,3370.3,3.2078]
[1735771561829,0.76199,3370.6,3370.4,0.2973]
[1735771562025,0.883,3370.5,3370.4,0.2973]
[1735771565626,0.4262,3370.5,3370.4,0.2973]
[1735771565827,0.4262,3370.5,3370.4,0.7362]
[1735771569532,0.4647,3370.6,3370.5,0.29729]
[1735771574835,0.76199,3370.6,3370.5,0.29729]
[1735771575637,0.4647,3370.6,3370.5,0.29729]
[1735771577939,0.29727,3370.8,3370.7,0.29727]
[1735771578340,0.8769,3370.9,3370.3,3.2078]
[1735771578543,0.29728,3370.7,3370.6,0.29728]
[1735771579243,0.29727,3370.8,3370.7,0.29727]
[1735771580345,0.8769,3370.9,3370.3,3.2078]
[1735771580547,0.29727,3370.8,3370.7,0.29727]
[1735771581343,0.29729,3370.6,3370.5,0.29729]
[1735771589147,3.2078,3370.8,3370.2,1.51164403]
[1735771589351,3.2078,3370.8,3370.4,0.2973]
[1735771589550,0.29729,3370.6,3370.4,0.2973]
[1735771590246,3.2078,3370.8,3370.4,0.2973]
[1735771590446,0.29729,3370.5,3370.4,0.2973]
[1735771596451,0.29729,3370.6,3370.4,0.2973]
[1735771599953,5.14394403,3370.9,3370.4,0.2973]
[1735771600146,0.2973,3370.5,3370.3,0.72741]
[1735771600559,0.4286,3370.4,3370.3,0.72741]
[1735771600760,0.4286,3370.4,3370.2,0.4524]
[1735771600955,0.4412,3370.3,3370.2,0.74972]
[1735771603155,0.4412,3370.3,3370.2,0.29732]
[1735771603458,0.73851,3370.3,3370.2,0.29732]
[1735771613163,0.4412,3370.3,3370.1,3.2078]
[1735771613461,0.29732,3370.2,3370.1,3.2078]
[1735771614164,1.50044403,3370.3,3369.6,1.48929553]
[1735771614359,1.35660403,3369.8,3369.7,0.29736]
[1735771614555,1.05924403,3369.8,3369.5,3.2078]
[1735771614867,0.29737,3369.6,3369.5,3.50518]
[1735771615660,0.29739,3369.5,3369.4,0.29739]
[1735771616958,1.05924403,3369.6,3369.4,0.29739]
[1735771616959,1.35662403,3369.6,3369.4,0.29739]
[1735771617159,0.29738,3369.5,3369.4,0.29739]
[1735771617362,0.29738,3369.5,3369.3,0.7574]
[1735771617564,1.05924403,3369.4,3369.3,0.7574]
[1735771619163,1.05924403,3369.4,3369.3,0.2974]
[1735771620367,1.35663403,3369.4,3369.3,0.2974]
[1735771622467,1.05924403,3369.4,3369.3,0.2974]
[1735771635477,1.35663403,3369.4,3369.3,0.2974]
[1735771640576,1.05924403,3369.4,3368.8,3.2078]
[1735771640882,1.05924403,3369.1,3369.0,0.29743]
[1735771641878,1.50614403,3369.1,3369.0,0.29743]
[1735771642882,0.29743,3369.0,3368.9,0.29743]
[1735771643183,1.35667403,3369.0,3368.8,3.2078]
[1735771643382,1.35667403,3369.0,3368.8,3.50524]
[1735771643580,1.05924403,3369.0,3368.8,3.2078]
[1735771643781,0.29744,3368.9,3368.8,3.2078]
[1735771644684,4.26704403,3369.0,3368.4,0.4636]
[1735771644983,0.29747,3368.5,3368.4,0.76108]
[1735771645173,0.29746,3368.6,3368.4,0.76108]
[1735771645377,0.76667,3368.5,3368.4,0.4636]
[1735771646384,1.82591403,3368.5,3368.4,0.4636]
[1735771647185,1.82591403,3368.5,3368.3,0.85647749]
[1735771647481,0.29748,3368.4,3368.3,0.55898749]
[1735771648185,1.96114403,3368.5,3368.2,0.4659]
[1735771648385,0.2975,3368.2,3368.1,0.7331]
[1735771649088,0.2975,3368.2,3368.1,0.2975]
[1735771650090,0.29752,3368.0,3367.9,4.4801366]
[1735771650389,1.35676403,3368.0,3367.9,4.4801366]
[1735771650790,1.81126403,3368.0,3367.9,0.29752]
[1735771652889,1.51374403,3368.0,3367.9,0.29752]
[1735771653194,0.4545,3368.0,3367.9,0.29752]
[1735771653894,0.29751,3368.1,3367.6,1.91444403]
[1735771654096,0.29751,3368.2,3368.1,0.2975]
[1735771654396,0.29751,3368.1,3368.0,0.29751]
[1735771658799,1.05924403,3368.3,3367.6,4.69864403]
[1735771659092,0.2975,3368.2,3368.1,0.2975]
[1735771659891,1.35673403,3368.3,3368.2,0.2975]
[1735771660486,1.05924403,3368.3,3368.2,0.2975]
[1735771668788,1.05924403,3368.3,3368.2,41.0975]
[1735771669192,1.05924403,3368.3,3368.2,0.2975]
[1735771674802,1.48434403,3368.4,3367.9,0.4455]
[1735771675004,1.05924403,3368.7,3368.6,0.29746]
[1735771675300,3.2078,3369.0,3368.4,0.4656]
[1735771675501,1.05924403,3368.9,3368.8,0.29744]
[1735771676197,1.05924403,3369.1,3369.0,0.29743]
[1735771682104,0.29738,3369.5,3368.8,3.2078]
[1735771682303,0.29738,3369.5,3369.2,0.2974]
[1735771682814,3.50518,3369.6,3369.3,0.29739]
[1735771684215,1.05924403,3369.4,3369.3,0.29739]
[1735771687309,1.05924403,3369.6,3369.3,0.4623]
[1735771687514,1.05924403,3369.6,3369.5,0.29738]
[1735771689717,1.05924403,3369.6,3369.3,0.4623]
[1735771689718,0.9005,3370.0,3369.9,0.29735]
[1735771690209,0.4407,3370.0,3369.9,0.29735]
[1735771690614,1.49994403,3370.0,3369.9,0.29735]
[1735771691315,1.05924403,3370.0,3369.9,0.29735]
[1735771695211,3.2078,3370.1,3370.0,0.29734]
[1735771695417,4.26704403,3370.1,3370.0,0.29734]
[1735771696721,1.05924403,3370.1,3370.0,0.29734]
[1735771701318,1.18971,3370.3,3370.1,0.29732]
[1735771701522,1.05924403,3370.1,3370.0,0.29734]
[1735771704321,1.18971,3370.3,3369.8,0.8902]
[1735771704521,1.18971,3370.3,3370.2,0.29732]
[1735771707534,0.8924,3370.3,3370.2,0.29732]
[1735771711441,1.18971,3370.3,3370.2,0.29732]
[1735771712830,1.95164403,3370.3,3370.2,0.29732]
[1735771727551,1.05924403,3370.3,3370.2,0.29732]
[1735771727760,0.29731,3370.4,3370.3,0.29731]
[1735771727952,1.77885403,3370.4,3370.3,0.29731]
[1735771728152,1.48154403,3370.4,3370.3,0.29731]
[1735771738167,1.92294403,3370.4,3370.3,0.29731]
[1735771742071,4.26704403,3370.5,3370.4,0.2973]
[1735771742369,4.72314403,3370.5,3370.4,0.2973]
[1735771749383,3.6639,3370.5,3370.4,0.2973]
[1735771749571,0.4561,3370.5,3370.4,0.2973]
[1735771753181,1.51534403,3370.5,3370.4,0.2973]
[1735771756077,0.4438,3370.7,3370.3,0.4255]
[1735771756283,0.74108,3370.7,3370.6,0.29729]
[1735771760284,0.4438,3370.7,3370.6,0.29729]
[1735771760480,1.50304403,3370.7,3370.6,0.29729]
[1735771764781,1.80032403,3370.7,3370.6,0.29729]
[1735771768376,1.50304403,3370.7,3370.6,0.29729]
[1735771769287,1.50304403,3370.7,3370.3,0.4255]
[1735771769481,1.05924403,3370.5,3370.4,0.2973]
[1735771770181,1.35653403,3370.5,3370.4,0.2973]
[1735771775285,3.6516,3370.7,3370.3,0.4255]
[1735771775492,0.29729,3370.6,3370.5,0.29729]
[1735771775790,1.35653403,3370.6,3370.5,0.29729]
[1735771781497,1.05924403,3370.6,3370.5,0.29729]
[1735771787110,0.4438,3370.7,3370.6,0.29729]
[1735771799020,0.8779,3370.8,3370.3,1.16878]
[1735771799021,0.8779,3370.8,3370.7,0.29728]
[1735771813431,6.93714403,3370.8,3370.1,3.2078]
[1735771813731,6.93714403,3370.8,3369.5,0.29738]
[1735771813732,0.29734,3370.0,3369.5,0.29738]
[1735771813927,0.29734,3370.0,3369.4,3.95127]
[1735771813928,1.05924403,3369.8,3369.4,3.2078]
[1735771814235,1.35660403,3369.8,3369.7,0.29737]
[1735771818025,1.05924403,3369.8,3369.7,0.29737]
[1735771844556,0.4409,3369.9,3369.8,0.29736]
[1735771858677,0.73825,3369.9,3369.8,0.29736]
[1735771858973,0.4409,3369.9,3369.8,0.29736]
[1735771865379,0.73825,3369.9,3369.8,0.29736]
[1735771865981,0.29736,3369.8,3369.7,0.29736]
[1735771866279,0.29736,3369.8,3369.2,0.4606]
[1735771866280,1.05924403,3369.8,3369.2,0.4606]
[1735771866575,1.35662403,3369.5,3369.4,0.29739]
[1735771866779,1.05924403,3369.5,3369.4,0.29739]
[1735771867280,1.48884403,3369.5,3369.4,0.29739]
[1735771868476,4.69664403,3369.5,3369.4,0.29739]
[1735771869977,4.99402403,3369.5,3369.4,0.29739]
[1735771871481,0.29739,3369.4,3369.3,0.2974]
[1735771871671,0.73199,3369.4,3369.3,0.2974]
[1735771873784,0.4346,3369.4,3369.3,0.2974]
[1735771874180,0.73199,3369.4,3369.3,0.2974]
[1735771875385,0.4346,3369.4,3369.3,0.2974]
[1735771886402,0.73199,3369.4,3369.3,0.2974]
[1735771887103,0.4346,3369.4,3369.3,0.2974]
[1735771888104,0.73199,3369.4,3369.3,0.2974]
[1735771900812,0.29742,3369.1,3369.0,0.29742]
[1735771907721,0.29743,3369.0,3368.9,1.21863414]
[1735771907919,0.29743,3369.0,3368.9,0.75683414]
[1735771911321,0.29743,3369.0,3368.9,0.45941414]
[1735771911624,1.35667403,3369.0,3368.9,0.45941414]
[1735771912114,0.29743,3369.0,3368.9,0.45941414]
[1735771912320,0.29744,3368.9,3368.8,0.29744]
[1735771912512,1.16854,3368.9,3368.8,0.29744]
[1735771912715,4.37634,3368.9,3368.8,0.29744]
[1735771915219,1.16854,3368.9,3368.8,0.29744]
[1735771921926,0.8711,3368.9,3368.8,0.29744]
[1735771922123,0.4225,3368.9,3368.8,0.29744]
[1735771930430,3.2078,3369.0,3368.9,0.29744]
[1735771939339,3.2078,3369.0,3368.8,0.7388]
[1735771939340,0.29742,3369.1,3369.0,0.29743]
[1735771947741,0.4488,3369.2,3369.1,0.29742]
[1735771947742,0.74622,3369.2,3369.1,0.29742]
[1735771953546,0.29743,3369.1,3369.0,0.29742]
[1735771956747,0.29744,3369.0,3368.9,0.29743]
[1735771956948,0.29744,3368.9,3368.8,0.29744]
[1735771957146,0.74874,3368.9,3368.8,0.29744]
[1735771969756,1.51054403,3368.9,3368.4,2.25844403]
[1735771969948,1.51054403,3368.9,3368.7,0.29745]
[1735771969949,1.17866,3368.8,3368.7,0.29745]
[1735771970149,0.8812,3368.8,3368.4,1.51474403]
[1735771970450,0.29747,3368.7,3368.6,0.29746]
[1735771971255,0.29747,3368.6,3368.5,0.29747]
[1735771975259,0.29748,3368.5,3368.4,0.29748]
[1735771975454,0.73208,3368.5,3368.4,0.29748]
[1735771976863,3.93988,3368.5,3368.4,0.29748]
[1735771981059,3.50528,3368.5,3368.4,0.29748]
[1735771981260,0.29748,3368.5,3368.4,0.29748]
[1735771982863,0.29749,3368.4,3368.3,0.29748]
[1735771983058,0.72449,3368.4,3368.3,0.29748]
[1735771988463,0.427,3368.4,3368.2,3.0583134]
[1735771988669,0.29749,3368.3,3368.2,3.3558034]
[1735771995076,0.29749,3368.3,3368.2,0.72539]
[1735771996770,3.6704,3368.6,3368.2,0.4279]
[1735771996970,0.29749,3368.4,3368.3,0.29748]
[1735771997770,0.29749,3368.3,3368.2,0.7254]
[1735771997971,0.72499,3368.3,3368.2,0.7254]
[1735772001978,0.29749,3368.3,3368.2,0.7254]
[1735772002182,0.29748,3368.4,3368.3,0.29748]
[1735772003771,4.1266,3368.6,3368.1,3.86508425]
[1735772003981,0.2975,3368.3,3368.2,0.29749]
[1735772005687,1.97804403,3368.6,3368.1,3.86508425]
[1735772005887,1.1713,3368.2,3368.1,4.16258425]
[1735772013395,1.1713,3368.2,3368.1,3.24328425]
[1735772017796,0.8738,3368.2,3368.1,3.24328425]
[1735772019297,1.1713,3368.2,3368.1,3.24328425]
[1735772019498,0.8738,3368.2,3368.1,3.24328425]
[1735772021004,0.428,3368.2,3368.1,3.24328425]
[1735772021202,0.428,3368.2,3368.1,3.71198425]
[1735772021595,0.72608,3368.5,3368.4,0.29748]
[1735772021802,1.17258,3368.5,3368.4,0.29748]
[1735772022099,0.8751,3368.5,3368.4,0.29748]
[1735772022901,0.4465,3368.5,3368.4,0.29748]
[1735772023102,0.4462,3368.8,3368.2,0.4619]
[1735772023400,0.4462,3368.8,3368.7,0.29745]
[1735772030600,0.29745,3368.7,3368.6,0.29746]
[1735772031201,0.29747,3368.5,3368.4,0.29748]
[1735772032203,1.05924403,3368.7,3368.2,3.2078]
[1735772032404,0.74389,3368.4,3368.3,0.29749]
[1735772032804,1.17879,3368.4,3368.3,0.29749]
[1735772034609,0.8813,3368.4,3368.2,3.2078]
[1735772034810,0.29749,3368.3,3368.2,3.50529]
[1735772035206,0.73319,3368.3,3368.2,3.50529]
[1735772036111,0.73319,3368.3,3368.2,0.29749]
[1735772041805,0.4357,3368.3,3368.2,0.29749]
[1735772044208,0.4349,3368.4,3368.3,0.29749]
[1735772044515,3.2078,3369.0,3368.3,1.05924403]
[1735772044714,3.2078,3369.0,3368.9,0.29744]
[1735772046712,2.24146403,3369.1,3369.0,0.29743]
[1735772048618,1.94404403,3369.1,3368.7,0.461]
[1735772048819,1.94404403,3369.1,3368.9,0.29743]
[1735772048820,0.29743,3369.0,3368.9,0.29743]
[1735772049414,2.24146403,3369.1,3369.0,0.29743]
[1735772049816,1.18222,3369.1,3369.0,0.29743]
[1735772050019,2.24146403,3369.1,3368.9,0.29743]
[1735772050223,0.29743,3369.0,3368.9,0.29743]
[1735772053126,1.94404403,3369.1,3368.5,0.4475]
[1735772053316,0.29744,3368.9,3368.8,0.29744]
[1735772053515,0.29744,3369.0,3368.6,0.29746]
[1735772053716,0.29745,3368.8,3368.7,0.29745]
[1735772053922,0.8848,3369.1,3368.5,0.4475]
[1735772054124,1.35667403,3369.0,3368.9,0.29744]
[1735772057632,0.29744,3368.9,3368.8,0.29744]
[1735772060226,0.29745,3368.8,3368.7,0.29745]
[1735772060426,1.35669403,3368.8,3368.7,0.29745]
[1735772062428,0.29743,3369.0,3368.9,0.29743]
[1735772063833,1.35667403,3369.0,3368.9,0.29743]
[1735772064334,1.35667403,3369.0,3368.8,0.29744]
[1735772064335,0.29744,3368.9,3368.8,0.29744]
[1735772065434,0.8848,3369.1,3368.5,0.4475]
[1735772065628,0.29744,3368.9,3368.8,0.29744]
[1735772066233,0.4334,3369.1,3369.0,0.29743]
[1735772072738,3.2078,3369.2,3369.1,0.29742]
[1735772072935,3.2078,3369.6,3369.5,0.29738]
[1735772073335,1.05924403,3369.7,3369.3,44.3056]
[1735772073536,1.05924403,3369.7,3369.6,0.29737]
[1735772079736,0.4566,3369.9,3369.7,0.29736]
[1735772079931,1.35660403,3369.8,3369.7,0.29736]
[1735772083938,0.4566,3369.9,3369.7,0.29736]
[1735772084245,1.81319403,3369.9,3369.8,0.29736]
[1735772084443,0.4566,3369.9,3369.8,0.29736]
[1735772084744,1.81319403,3369.9,3369.8,0.29736]
[1735772085941,1.51584403,3369.9,3369.8,0.29736]
[1735772092049,0.4566,3369.9,3369.8,0.29736]
[1735772103855,3.2078,3370.1,3369.6,0.4368]
[1735772104060,3.2078,3370.1,3370.0,0.29734]